{"text_format":"1","workbook":"xlsx","n_sheets":4,"sheets":["Cover","Interface Table","List","List2"],"not_rendered":{"charts":0,"images":0,"macros":1,"external_links":1,"defined_names":4,"comments":1,"pivot_tables":0},"unopened":[],"bounds":{"document_bytes":16777216,"sheet_cells":100000,"rows_first":2000,"rows_last":500,"rows_between":2000,"halvings":0,"cell_chars":16384,"cell_head_chars":4096},"cells_cut":0,"cells_raw":0,"read":"whole","date_system":"1900"}

{"sheet":"Cover","index":0,"n_rows":10,"n_cols":3,"rows_kept":10,"cut":false,"hidden":false,"merged":[]}
[]
[null,"L3 System:","Warm Front End"]
[null,"WBS:","121.4.02"]
[null,"L3 Manager:","Lionel Prost"]
[]
[]
[]
["Rev","Date","Comments"]
[0,"2018-04-09","Initial Release"]
[0.1,"2018-04-10","Updated WBS values in LIST tab according to \"frozen\" WBS as of 18 March 2018"]

{"sheet":"Interface Table","index":1,"n_rows":139,"n_cols":22,"rows_kept":139,"cut":false,"hidden":false,"merged":[]}
["Unique L3-L3 ID","Interface #","Interface    ID","Interface Name","Requirements Description","Requirements Clarification","Verification Method","Owner WBS","Owner Scope","Supplier WBS","Supplier Scope","Integrator WBS","Integrator Scope","Requirements Documents","Specification Documents","Units","Minimum Value","Nominal Value","Maximum Value","Status","Verification Documents","Comments"]
[1773,1,{"$f":"CONCATENATE(Interfaces[[#This Row],[Unique L3-L3 ID]],\"-\",IF(Interfaces[[#This Row],[Interface '#]]<10,\"00\",IF(Interfaces[[#This Row],[Interface '#]]<100,\"0\",\"\")),Interfaces[[#This Row],[Interface '#]])","v":"1773-001"},"HWR CM Magnet Leads","HWR CM Magnet Leads system shall include interfaces for powering  8 superconducting magnet packages","HWR shall provide specification of  Magnet Lead Feedthroughs","Inspection; Demonstration; Measurement","121.2.02 HWR","HWR shall provide specifications on Magnet Lead Feedthroughs (type and locations) and describe  Magnet Controls and Quench Protection schemes","121.3.05 MagPS","MagPS shall review and approve specifications on the HWR CM Magnet Leads system, provide connecting cables and magnet power supplies with the Quench Protection, specify  installation requirements and develop an acceptance testing procedure","121.4.05 LI","LI shall connect HWR Magnet Leads Feedthroughs with Power Supplies  and perform the acceptance test","ED000113 - HWR FRS; ED0004391 - HWR Magnet Power Supplies FRS ","ED0002529 - HWR ISD doc; ED0003723 - SPEC-HWR Current Lead Specification doc",null,null,null,null,"TBD","ED000xxx - Acceptance Test Report"]
[1773,2,{"$f":"CONCATENATE(Interfaces[[#This Row],[Unique L3-L3 ID]],\"-\",IF(Interfaces[[#This Row],[Interface '#]]<10,\"00\",IF(Interfaces[[#This Row],[Interface '#]]<100,\"0\",\"\")),Interfaces[[#This Row],[Interface '#]])","v":"1773-002"},"Power Supply to HWR connections","Power Supply systems need to connect to the cryogenic magnets through the cryo module. This includes cables and their connections",null,"Inspection ","121.2.02 HWR","HWR will provide location and connection points for all power supply related cabling including power supply cables for solenoids, correctors and voltage taps for QPM cables as well as specify the maximum allowable currents and voltages for each type of magnet","121.3.05 MagPS","MagPS will review and inspect proposed connection methods, specify, order and procure the cables and deliver the cables to the appropriate location","121.4.05 LI","LI will be responsible for installing all cables between the power supplies and the cryomodule. MagPS will be resposible for termination of cables and connecting the cables to the proper locations",null,null,null,null,null,null,"TBD"]
[1835,1,{"$f":"CONCATENATE(Interfaces[[#This Row],[Unique L3-L3 ID]],\"-\",IF(Interfaces[[#This Row],[Interface '#]]<10,\"00\",IF(Interfaces[[#This Row],[Interface '#]]<100,\"0\",\"\")),Interfaces[[#This Row],[Interface '#]])","v":"1835-001"},"SSR CM Magnet Leads","SSR CM Magnet Leads system shall include interfaces for powering  4 superconducting magnet packages","SSR shall provide specification of  Magnet Lead Feedthroughs","Inspection; Demonstration; Measurement","121.2.03 SSR","SSR shall provide specifications on Magnet Lead Feedthroughs (type and locations) and describe  Magnet Controls and Quench Protection schemes","121.3.05 MagPS","MagPS shall review and approve specifications on the SSR CMs Magnet Leads system, provide connecting cables and magnet power supplies with the Quench Protection, specify  installation requirements and develop an acceptance testing procedure","121.4.05 LI","LI shall connect SSR Magnet Leads Feedthroughs with Power Supplies  and perform the acceptance test","ED0001316 - SSR1 CM FRS; ED0001315 - Focusing Lens for SSR1 Cryomodule FRS ","ED0004129 - SSR ISD doc; ED0002941 - SSR1 Current Lead Specification doc",null,null,null,null,"TBD","ED000xxx - Acceptance Test Report"]
[2130,1,{"$f":"CONCATENATE(Interfaces[[#This Row],[Unique L3-L3 ID]],\"-\",IF(Interfaces[[#This Row],[Interface '#]]<10,\"00\",IF(Interfaces[[#This Row],[Interface '#]]<100,\"0\",\"\")),Interfaces[[#This Row],[Interface '#]])","v":"2130-001"},"QPM cavity liquid level permit","The QPM system needs a second, redundant indication that there is sufficient liquid helium in the cryo module to insure that all super conducting leads are immersed in liquid helium",null,"Inspection; Demonstration; Measurement","121.3.05 MagPS","MagPS shall specify a permit signal for QPM to indicate sufficient liquid level in the CM two-phase pipe","121.2.06 CDS","CDS shall provide the liquid level permit signal","121.4.05 LI","LI shall provide and run the cable from the cryo module liquid level sensor to the QPM ",null,null,null,null,null,null,"TBD"]
[2130,2,{"$f":"CONCATENATE(Interfaces[[#This Row],[Unique L3-L3 ID]],\"-\",IF(Interfaces[[#This Row],[Interface '#]]<10,\"00\",IF(Interfaces[[#This Row],[Interface '#]]<100,\"0\",\"\")),Interfaces[[#This Row],[Interface '#]])","v":"2130-002"},"CM magnet cryo permit","Cryomodule magnet power supplies require a general cryogenic permit signal to ensure safe operation of magnets",null,"Inspection; Demonstration","121.3.05 MagPS","MagPS shall specify a permit signal for QPM to indicate sufficient liquid level in the CM two-phase pipe","121.2.06 CDS","CDS shall provide the liquid level permit signal","121.4.05 LI","LI will provide and run the cable from the cryo module liquid level sensor to the QPM "]
[2130,3,{"$f":"CONCATENATE(Interfaces[[#This Row],[Unique L3-L3 ID]],\"-\",IF(Interfaces[[#This Row],[Interface '#]]<10,\"00\",IF(Interfaces[[#This Row],[Interface '#]]<100,\"0\",\"\")),Interfaces[[#This Row],[Interface '#]])","v":"2130-003"},"Power Supply communication with Cryogenics","The power supplies for the superconducting magnets need to receive a enable from the cryo system  if the cryogenic system is stable and the magnets are cold and the cryo module is filled with liquid helium at the proper temperature and pressure and can be energized",null,"Demonstration","121.3.05 MagPS","MagPS will have an input to the QPM  which will enable/disable the power supply from being energized if the cryogenic conditions are not right","121.2.06 CDS","The CDS will provide a signal to the QPMs which indicate that all cryogenic conditions are good ","121.3.05 MagPS","MagPS will be responsible to insure that the proper power supplies are disabled when the cryogenic system is not ready",null,null,null,null,null,null,"TBD"]
[2130,4,{"$f":"CONCATENATE(Interfaces[[#This Row],[Unique L3-L3 ID]],\"-\",IF(Interfaces[[#This Row],[Interface '#]]<10,\"00\",IF(Interfaces[[#This Row],[Interface '#]]<100,\"0\",\"\")),Interfaces[[#This Row],[Interface '#]])","v":"2130-004"},"Interface with cryo to insure that the second Liquid Helium Level Sensor is instrumented an that the signal is available to the Quench Protection Monitor","The QPM system needs a second, redundant indication that there is sufficient liquid helium in the cryo module to insure that all super conducting leads are immersed in liquid helium",null,"Inspection; Demonstration; Measurement","121.3.05 MagPS","MagPS will use the second Liquid Helium Level Sensor as part of its permit; if the cryo permit or this LL indicates \"bad\" the QPM will not allow power to be applied to the magnets","121.2.06 CDS","Cryo will provide a signal from the \"spare\" Liquid Level Sensor to the QPM","121.4.05 LI","LI will provide and run the cable from the cryo module liquid level sensor to the QPM ",null,null,null,null,null,null,null,null,"May want to revisit who interfaces with this interface.  Is it SSR, CDS, MagPS, Cntrls?  (AM and BH)"]
[2501,1,{"$f":"CONCATENATE(Interfaces[[#This Row],[Unique L3-L3 ID]],\"-\",IF(Interfaces[[#This Row],[Interface '#]]<10,\"00\",IF(Interfaces[[#This Row],[Interface '#]]<100,\"0\",\"\")),Interfaces[[#This Row],[Interface '#]])","v":"2501-001"},"RFQ input coupler bias supply status (MagPS)","The RFQ input coupler high voltage power supply (MagPS) shall provide a voltage on status to the RFQ power amplifier interlocks.",null,"Inspection; Demonstration;","121.3.03 HPRF;\n121.3.05 MagPS","121.3.05 MagPS shall define a cable and connector for the power supply connection;  12.3.03 HPRF shall define the connector for the amplifier interlocks.  MagPS shall also define the electrical standard for the digital status.","121.3.03 HPRF","121.3.03 HPRF shall provide the necessary cable and connectors to connect between the power supply ready signal and the amplifier interlocks.","121.3.03 HPRF","121.3.03 HPRF shall install the cable between the high voltage power supply and the RF power amplifier interlocks.",null,null,null,null,null,null,"TBD",null,"Already installed at PIP2IT.  Include to say that MagPS will provide the power supply as well provide cables and connector specifications (AM)."]
[2501,2,{"$f":"CONCATENATE(Interfaces[[#This Row],[Unique L3-L3 ID]],\"-\",IF(Interfaces[[#This Row],[Interface '#]]<10,\"00\",IF(Interfaces[[#This Row],[Interface '#]]<100,\"0\",\"\")),Interfaces[[#This Row],[Interface '#]])","v":"2501-002"},"CTS 325 MHz input coupler bias supply status (MagPS)","The coupler test stand (CTS) 325 MHz input coupler high voltage power supply (MagPS) shall provide a voltage on status to the CTS 325 MHz power amplifier interlocks.",null,"Inspection; Demonstration;","121.3.03 HPRF;\n121.3.05 MagPS","121.3.05 MagPS shall define a cable and connector for the power supply connection.  MagPS shall also define the electrical standard for the digital status;  12.3.03 HPRF shall define the connector for the amplifier interlocks.  ","121.3.03 HPRF","121.3.03 HPRF shall provide the necessary cable and connectors to connect between the power supply ready signal and the amplifier interlocks.","121.3.03 HPRF","121.3.03 HPRF shall install the cable between the high voltage power supply and the RF power amplifier interlocks.",null,null,null,null,null,null,"TBD",null,"Already installed at MDB.  Do we have the equivalent for the PIP-II Linac CM's (individual couplers)? (AM)  If not they should be created.  LLRF may have involvement here instead of HPRF (AM)."]
[2501,3,{"$f":"CONCATENATE(Interfaces[[#This Row],[Unique L3-L3 ID]],\"-\",IF(Interfaces[[#This Row],[Interface '#]]<10,\"00\",IF(Interfaces[[#This Row],[Interface '#]]<100,\"0\",\"\")),Interfaces[[#This Row],[Interface '#]])","v":"2501-003"},"CTS 650 MHz input coupler bias supply status (MagPS)","The coupler test stand (CTS) 650 MHz input coupler high voltage power supply (MagPS) shall provide a voltage on status to the CTS 650 MHz power amplifier interlocks.",null,"Inspection; Demonstration;","121.3.03 HPRF;\n121.3.05 MagPS","121.3.05 MagPS shall define a cable and connector for the power supply connection.  MagPS shall also define the electrical standard for the digital status;  12.3.03 HPRF shall define the connector for the amplifier interlocks.  ","121.3.03 HPRF","121.3.03 HPRF shall provide the necessary cable and connectors to connect between the power supply ready signal and the amplifier interlocks.","121.3.03 HPRF","121.3.03 HPRF shall install the cable between the high voltage power supply and the RF power amplifier interlocks.",null,null,null,null,null,null,"TBD",null,"LLRF may have involvement here instead of HPRF (AM)."]
[2501,4,{"$f":"CONCATENATE(Interfaces[[#This Row],[Unique L3-L3 ID]],\"-\",IF(Interfaces[[#This Row],[Interface '#]]<10,\"00\",IF(Interfaces[[#This Row],[Interface '#]]<100,\"0\",\"\")),Interfaces[[#This Row],[Interface '#]])","v":"2501-004"},"Power Supply communication with high power RF source","The power supply QPM needs to communicate with the HLRF if it finds that a magnet has quenched",null,"Demonstration","121.3.03 HPRF","The QPM system will communicate to the appropriate RF station that a quench has occurred. The RF station can then be turned off. HPRF will define the type of signal needed","121.3.05 MagPS","MagPS will provide a signal to the HLRF that a quench has occurred in a given cryo module and that the RF should be turned off. ","121.3.03 HPRF","High level RF will need to verify that the appropriate RF is turned off in case of a magnet quench",null,null,null,null,null,null,"TBD",null,"LLRF may have involvement here instead of HPRF (AM)."]
[2550,1,{"$f":"CONCATENATE(Interfaces[[#This Row],[Unique L3-L3 ID]],\"-\",IF(Interfaces[[#This Row],[Interface '#]]<10,\"00\",IF(Interfaces[[#This Row],[Interface '#]]<100,\"0\",\"\")),Interfaces[[#This Row],[Interface '#]])","v":"2550-001"},"Interface with Low Level RF for the control and monitoring of the Coupler HV Bias power supply for all SRF cavity couplers in the Linac","Digital control (ON/OFF) as well as analog readbacks (voltage and current) are required and will be done using a PLC provided by RFPI",null,"Inspection; Demonstration; Measurement","121.3.05 MagPS","MagPS will provide the HV power supply and all cabling from the power supply to the coupler","121.3.04 LLRF","LLRF will provide a PLC and all connections required for monitoring and control of the power supply","121.4.05 LI; 121.3.04 LLRF;121.3.05 MagPS","LI will be responsible to run all necesary cables. LLRF will install the necessary PLC modules into relay racks provided by LI and make all needed connections. MagPS will be responsible to install the power supply and specify the cable between the power supply and coupler"]
[2599,1,{"$f":"CONCATENATE(Interfaces[[#This Row],[Unique L3-L3 ID]],\"-\",IF(Interfaces[[#This Row],[Interface '#]]<10,\"00\",IF(Interfaces[[#This Row],[Interface '#]]<100,\"0\",\"\")),Interfaces[[#This Row],[Interface '#]])","v":"2599-001"},"BTL Dipole and Quad magnet vacuum beam tube and flanges","The BTL dipoles and quads must be compatible with the vacuum requirements of the beam line and must connect to other devices",null,"Inspection, Demonstration","121.3.06 Vac","The vacuum WBS needs to define flange sizes and adaptor pipes so that vacuum connections between the magnets and other devices can be made. Vac also needs to define the vacuum requirements","121.3.05 MagPS","MagPS will provide magnets with suitable beam pipes that have the required vacuum properties","121.5.03 BTLI","BTLI will install the magnets and be responsible for connections between magnets and other devices",null,null,null,null,null,null,"TBD",null,"Quads may not have inserted beam pipe. DM"]
[2599,2,{"$f":"CONCATENATE(Interfaces[[#This Row],[Unique L3-L3 ID]],\"-\",IF(Interfaces[[#This Row],[Interface '#]]<10,\"00\",IF(Interfaces[[#This Row],[Interface '#]]<100,\"0\",\"\")),Interfaces[[#This Row],[Interface '#]])","v":"2599-002"},"Vacuum interface for BTL specialty magnets","There are four specialty magnets in the BTL that will have unique designs that need to be compatible with the BTL vacuum requirements and systems",null,"Inspection, Demonstration,Analysis, Measurement","121.3.06 Vac","Vac will define the vacuum requirements for these devices and specify beam tube requirements","121.3.05 MagPS","MagPS will provide magnets with beam pipe properties compatible with the vacuum requirements","121.5.03 BTLI","Rinst will be responsible for installing the specialty magnets and for making the vacuum connections",null,null,null,null,null,null,"TBD"]
[2599,3,{"$f":"CONCATENATE(Interfaces[[#This Row],[Unique L3-L3 ID]],\"-\",IF(Interfaces[[#This Row],[Interface '#]]<10,\"00\",IF(Interfaces[[#This Row],[Interface '#]]<100,\"0\",\"\")),Interfaces[[#This Row],[Interface '#]])","v":"2599-003"},"VAC-MagPS","Magnet aperture shall be compatible with vacuum beamtube",null,"design drawings; Inspection;","121.3.06 Vac;\n121.3.05 MagPS","VAC and MagPS shall agree on beamtube design and specification","121.3.05 MagPS","Magnets will have features to support beamtube installation.","121.3.06 Vac","beamtube reliablablly fit and supported insde magnets","ED0004444",null,null,null,null,null,"TBD"]
[2600,1,{"$f":"CONCATENATE(Interfaces[[#This Row],[Unique L3-L3 ID]],\"-\",IF(Interfaces[[#This Row],[Interface '#]]<10,\"00\",IF(Interfaces[[#This Row],[Interface '#]]<100,\"0\",\"\")),Interfaces[[#This Row],[Interface '#]])","v":"2600-001"},"650 MHz magnet power supply to MPS","MagPS will need to interface with the MPS to turn off the beam in case they are not in the proper state. In addition, MAGPS will need to interface with Controls to insure we have a waveform generator appropriate to the power supplies as well as read back and status channels that are appropriate for the power supply and to provide an appropriate interface to EPICs",null,"Demonstration","121.3.05 MagPS","MagPS will define the interlocks and conditions under which the power supply system is not in the proper state. Also MAGPS will define the number of readback channels, the number of digital channels needed and the type of reference signal needed for the supplies","121.3.07 Cntrl,121.3.02 MPS"," MPS will need to provide inputs  to the MPS system for these power supplies. Controls will install an adequate number of VME crates and appropriate control cards which will generate the dc references needed as well as analog and digital control and an appropriate interface between the power supply controls and EPICs","121.3.07 Cntrl,121.3.02 MPS","MPS will install all necessary systems to provide for the monitoring of all the warm 650 MHz power supplies",null,null,null,null,null,null,"TBD",null,"True for the correctors.  Quads will have their own control system.  MagPS will provide and install VME crates and cards.  Controls will only provide the Ethernet connection. (AM)  Bruce and I have edited this interface (AM).  Should not specifiy VME crates. MPS is now separate scope."]
[2600,2,{"$f":"CONCATENATE(Interfaces[[#This Row],[Unique L3-L3 ID]],\"-\",IF(Interfaces[[#This Row],[Interface '#]]<10,\"00\",IF(Interfaces[[#This Row],[Interface '#]]<100,\"0\",\"\")),Interfaces[[#This Row],[Interface '#]])","v":"2600-002"},"Controls and MPS for BTL power supplies","MagPS will need to interface with controls to insure we have a waveform generator appropriate to the power supply as well as read back and status channels that are appropriate for the power supply. In addition these supplies will need to communicate with the MPS system in case they trip off",null,"Demonstration","121.3.05 MagPS","MagPS will define the number of readback channels, the number of digital channels needed and the type of reference signal needed for each supply as well as define the type of signal that will be sent to the MPS and define the conditions that will signal that the power supply is not in the correct state.","121.3.07 Cntrl,121.3.02 MPS","Controls will install an adequate number of VME crates and appropriate control cards which will generate the dc references needed as well as analog and digital control and an appropriate interface between the power supply controls and EPICs. MPS will also need to provide inputs  to the MPS system for all BTL power supplies","121.3.07 Cntrl,121.3.02 MPS","Controls will be responsible for installing all necessary crates, control cards and read back capabilities as required by the power supply system. MPS will be responsible to insure the MPS connections are correct"," ",null,null,null,null,null,"TBD",null,"Only interface with Cntrls with Ethernet.  VME crates and hardware will be provided and installed by MagPS (AM).  Should not specifiy VME crates. MPS is now separate scope."]
[2600,3,{"$f":"CONCATENATE(Interfaces[[#This Row],[Unique L3-L3 ID]],\"-\",IF(Interfaces[[#This Row],[Interface '#]]<10,\"00\",IF(Interfaces[[#This Row],[Interface '#]]<100,\"0\",\"\")),Interfaces[[#This Row],[Interface '#]])","v":"2600-003"},"Timing signals","The fast switch magnet power supply will need timing signals",null,"Analysis","121.3.05 MagPS","MagPS will define the requirements for the timing","121.3.07 Cntrl","Controls will supply the appropriate system to deliver the required timing signals","121.5.03 BTLI","Rinst will run the timing cables from the controls system to the power supply"]
[2601,1,{"$f":"CONCATENATE(Interfaces[[#This Row],[Unique L3-L3 ID]],\"-\",IF(Interfaces[[#This Row],[Interface '#]]<10,\"00\",IF(Interfaces[[#This Row],[Interface '#]]<100,\"0\",\"\")),Interfaces[[#This Row],[Interface '#]])","v":"2601-001"},"SS ESS SSIU Interlock Permit Interface to MagPS Power Supplies","SS shall provide ESS permit signals to MagPS interlocked power supplies.","MagPS's power supplies with exposed connections will be interlocked and permited by SS's ESS interlock permit signals.","SS personnel will test the hardware and system with an ESS test procedure.","121.3.08 SS","SS owns the ESS SSIU Interlock Permit Interface.  SS provides ESS permit signals from its SSIUs for interlocked MagPS power supplies.","121.3.05 MagPS","- MagPS supplies signal interfaces for inhibiting and permitting the individual power supplies\n\n-SS supplies the ESS permit cables for each interlocked power supply","121.3.05 MagPS;\n121.3.08 SS","- MagPS will pull and connects permit cables from SSIUs to each of the power supply permit interfaces.\n\n- SS connects their end of each permit cable to a SSIU",null,"- ESS Functional Description (placeholder)\n- SSIU Functional Description (placeholder)",null,null,null,null,"TBD","ESS Test Procedure","\"This is a \"\"consoildated\"\" interface for all MagPS power supply interfaces to SS's SSIUs.\n\nAssuming ISDs will define all the particular interfaces and power supplies for MagPS\n\nSuggest this entry and refine it moving forward\n\n-AO, 2/7/19"]
[2603,1,{"$f":"CONCATENATE(Interfaces[[#This Row],[Unique L3-L3 ID]],\"-\",IF(Interfaces[[#This Row],[Interface '#]]<10,\"00\",IF(Interfaces[[#This Row],[Interface '#]]<100,\"0\",\"\")),Interfaces[[#This Row],[Interface '#]])","v":"2603-001"},"QPM to MPS communication","The HWR, SSR1 and SSR2 QPMs need to communicate with the MPS to shut off beam incase a magnet has quenched or turned off",null,"Demonstration","121.3.02 MPS","The QPM system for HWR, SSR1 and SSR2 magnets need to communicate to the MPS that a magnet has quenched or is otherwise off so as to turn off beam. MPS will specify the type of signal and cable","121.3.05 MagPS","MagPS will provides a signal to the MPS indicating a bad status for a magnet as well as provide the cable","121.4.05 LI","LI will be responsible for the cables between the QPM and MPS",null,null,null,null,null,null,"TBD",null,"Will have to change the supplier to the new MPS WBS when ready. (AM and BH)"]
[2614,1,{"$f":"CONCATENATE(Interfaces[[#This Row],[Unique L3-L3 ID]],\"-\",IF(Interfaces[[#This Row],[Interface '#]]<10,\"00\",IF(Interfaces[[#This Row],[Interface '#]]<100,\"0\",\"\")),Interfaces[[#This Row],[Interface '#]])","v":"2614-001"},"650 MHz warm magnet Linac Building requirements","The power supplies for the warm 650 MHz power supplies will require relay racks to accommodate commercial power supplies and crates for regulators as well as relay racks for switcher modules. These RR will require 480 and 110 VAC.",null,"Inspection, Demonstration","121.3.05 MagPS","MagPS willpProvide estimates of rack space needed, heat estimates and AC power requirements ","121.4.04 BldgI"," BldgI will design in space for relay racks, access to appropriate ac power, adequate air cooling and cable trays for both power and signals as well as provide for LCW at the magnet locations in the tunnel","121.4.05 LI","LI will receive assembled relay racks with commercial power supplies and FNAL crates with controllers. LI will install these RR in appropriate places,run ac power to the racks and install cables to the magnets",null,null,null,null,null,null,"TBD",null,"Bruce and I made some modifications (AM)."]
[2614,2,{"$f":"CONCATENATE(Interfaces[[#This Row],[Unique L3-L3 ID]],\"-\",IF(Interfaces[[#This Row],[Interface '#]]<10,\"00\",IF(Interfaces[[#This Row],[Interface '#]]<100,\"0\",\"\")),Interfaces[[#This Row],[Interface '#]])","v":"2614-002"},"Interface with Building Infrastructure to insure there is adequate cooling for BTL devices","The power supplies in the gallery and the magnets in the Beam Transfer Line will generate heat that needs to be accounted for. Also there will be water cooling and AC power requirements that will be needed as well as space requirements",null,"Inspection, Demonstration,Analysis, Measurement","121.3.05 MagPS","MagPS will provide estimates of heat loads from BTL power supplies and magnets as well as space requierments for power supplies. MagPS wil also specify what devices will need water cooling and how much water will be needed and what ac power is required for the various power supplies","121.4.04 BldgI","BldgI will provide adequate cooling in the building and tunnel to account for heating due to power supplies and magnets as well as insure that water cooling is available to power supplies and magnets where needed, that appropriate AC power is available to power supplies and that there are adequate cable trays.","121.4.05 LI","Linac Installation is responsible for the installation of adequate cooling in the beam line gallery and in the tunnel and for installation of all necessary infrastructure such as water  and AC power",null,null,null,null,null,null,"TBD"]
[2614,3,{"$f":"CONCATENATE(Interfaces[[#This Row],[Unique L3-L3 ID]],\"-\",IF(Interfaces[[#This Row],[Interface '#]]<10,\"00\",IF(Interfaces[[#This Row],[Interface '#]]<100,\"0\",\"\")),Interfaces[[#This Row],[Interface '#]])","v":"2614-003"},"Power","BldgI shall provide power for magnets and power supply racks",null,"Inspection","121.3.05 MagPS","121.3.05 MagPS shall define power requirements for magnets and power supply racks","121.4.04 BldgI","121.4.04 BldgI shall provide power feeders between the main panels in the building and outlets or disconnects for the magnets and power supply racks for 121.3.05 MagPS","121.4.05 LI","121.4.05 LI shall provide installation support to MagPS and BldgI","TBD","TBD",null,null,null,null,"TBD"]
[2614,4,{"$f":"CONCATENATE(Interfaces[[#This Row],[Unique L3-L3 ID]],\"-\",IF(Interfaces[[#This Row],[Interface '#]]<10,\"00\",IF(Interfaces[[#This Row],[Interface '#]]<100,\"0\",\"\")),Interfaces[[#This Row],[Interface '#]])","v":"2614-004"},"Grounding","BldgI shall provide proper grounding of equipment.",null,"Inspection","121.3.05 MagPS","121.3.05 MagPS shall define grounding requirements for MagPS equipment","121.4.04 BldgI","121.4.04 BldgI shall provide the grounding infrastructure required for 121.3.05 MagPS equipment","121.4.05 LI","121.4.05 LI shall provide installation support to MagPS and BldgI","TBD","TBD",null,null,null,null,"TBD"]
[2614,5,{"$f":"CONCATENATE(Interfaces[[#This Row],[Unique L3-L3 ID]],\"-\",IF(Interfaces[[#This Row],[Interface '#]]<10,\"00\",IF(Interfaces[[#This Row],[Interface '#]]<100,\"0\",\"\")),Interfaces[[#This Row],[Interface '#]])","v":"2614-005"},"Interface with Bldgl to insure there is single point LOTO for the Linac","The power supplies in the Linac will need to be LOTOed in case of an access or maintanance. This will allow for personnel to LOTO all the Linac power supplies and magnets with a single lock",null,"Inspection, Demonstration,Analysis, Measurement","121.3.05 MagPS","MagPS will provide VAC requirements for all Linac power supplies","121.4.04 BldgI","Bldgl will provide power distribution from a main panel to the power supply relay racks that will be able to be LOTOed","121.4.05 LI","Linac Complex is responsible for running the power distribution cables and providing for a lockable system",null,null,null,null,null,null,"TBD"]
[2614,6,{"$f":"CONCATENATE(Interfaces[[#This Row],[Unique L3-L3 ID]],\"-\",IF(Interfaces[[#This Row],[Interface '#]]<10,\"00\",IF(Interfaces[[#This Row],[Interface '#]]<100,\"0\",\"\")),Interfaces[[#This Row],[Interface '#]])","v":"2614-006"},"Power Supply interface with Linac Gallery for Relay Rack space and AC power","The power supplies for the super conducting magnets will be assembled in relay racks which will need to be installed in the Linac gallery",null,"Inspection, Demonstration","121.3.05 MagPS","MagPS will define the rack space needed, heat estimates and AC power requirements for all the power supply systems","121.4.04 BldgI","Building infrastructure will layout the gallery to accomodate space for relay racks, access to appropriate ac power, adequate air cooling and cable trays for both power and signal cables","121.4.05 LI","Assembled power supply systems will be delivered to the gallery ready for installation which will include locating the devices and connecting the required AC power to the racks/devices",null,null,null,null,null,null,"TBD"]
[2614,7,{"$f":"CONCATENATE(Interfaces[[#This Row],[Unique L3-L3 ID]],\"-\",IF(Interfaces[[#This Row],[Interface '#]]<10,\"00\",IF(Interfaces[[#This Row],[Interface '#]]<100,\"0\",\"\")),Interfaces[[#This Row],[Interface '#]])","v":"2614-007"},"Cables for MagPS systems","MagPS shall specify all cables required for MagPS systems.  LI/BldgI shall supply any standard cables available in PIP2 cable stores.  MagPS shall supply any non-standard cables","Handoff point is at the PIP2 dock","Inspection","121.3.05 MagPS","MagPS shall define all the cables","121.3.05 MagPS;\n121.4.04 BldgI","BldgI shall deliver standard cables available in PIP2 stores.  MagPS shall deliver any speciality cables","121.4.05 LI","LI shall perform all cable pulls",null,null,null,null,null,null,"TBD"]
[2615,1,{"$f":"CONCATENATE(Interfaces[[#This Row],[Unique L3-L3 ID]],\"-\",IF(Interfaces[[#This Row],[Interface '#]]<10,\"00\",IF(Interfaces[[#This Row],[Interface '#]]<100,\"0\",\"\")),Interfaces[[#This Row],[Interface '#]])","v":"2615-001"},"MagPS systems common requirements - alignment referencing","MagPS magnets shall come with permanently affixed fiducials.  Fiducials shall accept standard 1.5\" Dia. SMR balls or SMR nests.  Fiducials shall be visible from the beam-right side of the accelerator.   Redundant fiducials are encouraged.  Adhesive bonded fiducials are discouraged.    No magnetic fiducials permitted in close proximity to the beamline.  ","0-Interface","Demonstration","121.3.05 MagPS; 121.4.05 LI","MagPS will define the fiducial arrangment","121.3.05 MagPS","MagPS will provide the fiducials","121.4.05 LI","Fiducials are used by LI-Alignment during integration",null,null,null,null,null,null,"TBD"]
[2615,2,{"$f":"CONCATENATE(Interfaces[[#This Row],[Unique L3-L3 ID]],\"-\",IF(Interfaces[[#This Row],[Interface '#]]<10,\"00\",IF(Interfaces[[#This Row],[Interface '#]]<100,\"0\",\"\")),Interfaces[[#This Row],[Interface '#]])","v":"2615-002"},"MagPS Power Supply common requirements - rigging","MagPS Power Supplies, or any dismountable part thereof bigger than what can be handled by a single individual, shall include rigging interfaces for vertical lifting with a crane as well as forklifting interfaces for lifting with a forklift or pallet jack.  All lifting interfaces shall be clearly marked.  Rigging components shall satisfy the requirements of the relevant FESHM chapters (e.g. marking of rigging components).  All payload weights shall be clearly marked.  ","0-Interface","Inspection ","121.3.05 MagPS; 121.4.05 LI","MagPS will define the design","121.3.05 MagPS","MagPS will provide the rigging interfaces","121.4.05 LI","LI will integrate these systems within the PIP2 footprint",null,null,null,null,null,null,"TBD"]
[2615,3,{"$f":"CONCATENATE(Interfaces[[#This Row],[Unique L3-L3 ID]],\"-\",IF(Interfaces[[#This Row],[Interface '#]]<10,\"00\",IF(Interfaces[[#This Row],[Interface '#]]<100,\"0\",\"\")),Interfaces[[#This Row],[Interface '#]])","v":"2615-003"},"MagPS Magnet common requirements - rigging","MagPS Magnets shall include rigging interfaces for vertical lifting with a crane, both as a complete unit and as halves or sectors.  All lifting interfaces shall be clearly marked.  Rigging components shall satisfy the requirements of the relevant FESHM chapters (e.g. marking of rigging components).  All payload weights shall be clearly marked.  ","0-Interface","Inspection ","121.3.05 MagPS; 121.4.05 LI","MagPS will define the design","121.3.05 MagPS","MagPS will provide the rigging interfaces","121.4.05 LI","LI will integrate these systems within the PIP2 footprint",null,null,null,null,null,null,"TBD"]
[2627,1,{"$f":"CONCATENATE(Interfaces[[#This Row],[Unique L3-L3 ID]],\"-\",IF(Interfaces[[#This Row],[Interface '#]]<10,\"00\",IF(Interfaces[[#This Row],[Interface '#]]<100,\"0\",\"\")),Interfaces[[#This Row],[Interface '#]])","v":"2627-001"},"TLBA  Magnets and Power Supplies (MagPS)","Magnets and Power Supplies (MagPS) should connect the design of Transfer Line and the Beam Absorber to obtain the specifications of all the magnets, and requirements of the power suplies.",null,"Inspection","121.5.02 TLBA;\n121.3.05 MagPS","TLBA shall give the specification of the magnets and the power supplies and the tollerance of the error range","121.3.05 MagPS","Magnets and Power Supplies (MagPS) should  provide   all the magnets and  the power suplies.","121.5.03 BTLI;\n121.3.05 MagPS","rings installation(Rinst) should connect the the design of Transfer Line and the Beam Absorber to make sure to meet all requirements of all the elements (magnets including dipoles, quadrupoles and correctors)",null,null,null,null,null,null,"TBD",null,"MagPS should also be the Integrator.  May combine with interface above. (DM)"]
[2627,2,{"$f":"CONCATENATE(Interfaces[[#This Row],[Unique L3-L3 ID]],\"-\",IF(Interfaces[[#This Row],[Interface '#]]<10,\"00\",IF(Interfaces[[#This Row],[Interface '#]]<100,\"0\",\"\")),Interfaces[[#This Row],[Interface '#]])","v":"2627-002"},"Interface with the Transfer Line  and Beam Absorber WBS to insure magnet design is compatible with BTL design","This interface is to insure that the final design of the dipole, quad and Specialty magnets meet the requirements of the lattice design. In addition we need to provide to the lattice designers the slot length of the magnets and the transverse dimensions of the magnets",null,"Inspection, Demonstration,Analysis, Measurement","121.5.02 TLBA","TLBA will provide the design and specifications for all magnets in the transfer line","121.3.05 MagPS","MagPS will provide all magnets based on the results of TBLA specifications. In addition MagPS will provide all necessary cabling for installation","121.5.03 BTLI","Rinst will be responsible for installation of the BTL magnets, water connections, cable installation and alignment",null,null,null,null,null,null,"TBD",null,"This may be a duplicate with one of the earlier ones (take a look and reconcile) (AM and BH)  MagPS should also be the Integrator.  Integrator scope is more broad. (DM)"]
[2627,3,{"$f":"CONCATENATE(Interfaces[[#This Row],[Unique L3-L3 ID]],\"-\",IF(Interfaces[[#This Row],[Interface '#]]<10,\"00\",IF(Interfaces[[#This Row],[Interface '#]]<100,\"0\",\"\")),Interfaces[[#This Row],[Interface '#]])","v":"2627-003"},"BTL magnets","Provide Beam Transfer Line magnet components as specified in the lattice ",null,"Visual, Electrical","121.5.02 TLBA","TLBA and RInst will specify field requirements and physical mounting specs","121.3.05 MagPS","MagPS will supply magnets with specified field requirements ","121.5.03 BTLI","RInst will receive, verify and install all BTL magnets and provide stands as needed",null,null,null,null,null,null,"TBD",null,"Mixing fields information and physical mounting.  Needs to be broken into multiple interfaces."]
[2627,4,{"$f":"CONCATENATE(Interfaces[[#This Row],[Unique L3-L3 ID]],\"-\",IF(Interfaces[[#This Row],[Interface '#]]<10,\"00\",IF(Interfaces[[#This Row],[Interface '#]]<100,\"0\",\"\")),Interfaces[[#This Row],[Interface '#]])","v":"2627-004"},"BAL magnets","Provide Beam Abort Line magnet components as specified in the lattice",null,"Visual, Electrical","121.5.02 TLBA","TLBA and RInst will specify field requirements and physical mounting specs","121.3.05 MagPS","MagPS will supply magnets with specified field requirements ","121.5.03 BTLI","RInst will receive, verify and install all BAL magnets and provide stands as needed",null,null,null,null,null,null,"TBD",null,"Mixing fields information and physical mounting.  Needs to be broken into multiple interfaces."]
[2627,5,{"$f":"CONCATENATE(Interfaces[[#This Row],[Unique L3-L3 ID]],\"-\",IF(Interfaces[[#This Row],[Interface '#]]<10,\"00\",IF(Interfaces[[#This Row],[Interface '#]]<100,\"0\",\"\")),Interfaces[[#This Row],[Interface '#]])","v":"2627-005"},"Transfer Line and Beam Absorber(TLBA) rings Installation (Rinst)","rings installation(Rinst) should connect the the design of Transfer Line and the Beam Absorber to make sure to meet all requirements of all the elements (magnets including dipoles, quadrupoles and correctors), instrumentations sunch as BPMs, Collimators, Toroid.",null,"Inspection  ","121.5.02 TLBA","TLBA shall give the tolerance of installation positions of the elements ","121.3.05 MagPS",null,"121.5.05  Rinst",null,null,null,null,null,null,null,"TBD"]
[2628,1,{"$f":"CONCATENATE(Interfaces[[#This Row],[Unique L3-L3 ID]],\"-\",IF(Interfaces[[#This Row],[Interface '#]]<10,\"00\",IF(Interfaces[[#This Row],[Interface '#]]<100,\"0\",\"\")),Interfaces[[#This Row],[Interface '#]])","v":"2628-001"},"BTL PS cable","Provide cabling and connectors to power the BTL and BAL magnet components",null,"Visual ","121.3.05 MagPS","MagPS will specify cable requirements based on loads serviced and identify service building termination locations","121.3.05 MagPS","MagPS will supply appropriate cable and identify termination locations","121.5.03 BTLI","Rinst will install cables from pre-determined locations to tunnel components",null,null,null,null,null,null,"TBD",null,"Rinst should also be the supplier.  (AM and BH)  Incorrect ID.  Cannot have one L3 between Owner and Supplier.  Can't be an interface with ones-self. (AM)  Need to understand how to handle this."]
[2640,1,{"$f":"CONCATENATE(Interfaces[[#This Row],[Unique L3-L3 ID]],\"-\",IF(Interfaces[[#This Row],[Interface '#]]<10,\"00\",IF(Interfaces[[#This Row],[Interface '#]]<100,\"0\",\"\")),Interfaces[[#This Row],[Interface '#]])","v":"2640-001"},"Penetrations","Cmplx shall provide penetrations between the LINAC gallery and the LINAC tunnel.",null,"Inspection","121.3.05 MagPS\n","121.3.05 MagPS shall define the number and spacing requirements for penetrations between the LINAC gallery and the LINAC tunnel.  ","121.6.05 Cmplx","121.6.05 Cmplx shall provide the penetrations for 121.3.05 MagPS","121.4.04 BldgI\n121.4.05 LI\n","121.4.04 BldgI and 121.4.05 LI shall provide installation support to MagPS and Cmplx","TBD","ED0006757 - High Bay Building TRS;  ED0006791 - Linac Tunnel TRS;  ED0006793 - Linac Gallery TRS;  ED0006786 - Beam Transfer Line TRS;  CF Assumptions Document",null,null,null,null,"TBD",null,"This is interface is important especially with BldgI to determine the layout of penetrations, etc. (AM and BH)"]
[null,null,{"$f":"CONCATENATE(Interfaces[[#This Row],[Unique L3-L3 ID]],\"-\",IF(Interfaces[[#This Row],[Interface '#]]<10,\"00\",IF(Interfaces[[#This Row],[Interface '#]]<100,\"0\",\"\")),Interfaces[[#This Row],[Interface '#]])","v":"-00"}]
[null,null,{"$f":"CONCATENATE(Interfaces[[#This Row],[Unique L3-L3 ID]],\"-\",IF(Interfaces[[#This Row],[Interface '#]]<10,\"00\",IF(Interfaces[[#This Row],[Interface '#]]<100,\"0\",\"\")),Interfaces[[#This Row],[Interface '#]])","v":"-00"}]
[null,null,{"$f":"CONCATENATE(Interfaces[[#This Row],[Unique L3-L3 ID]],\"-\",IF(Interfaces[[#This Row],[Interface '#]]<10,\"00\",IF(Interfaces[[#This Row],[Interface '#]]<100,\"0\",\"\")),Interfaces[[#This Row],[Interface '#]])","v":"-00"}]
[null,null,{"$f":"CONCATENATE(Interfaces[[#This Row],[Unique L3-L3 ID]],\"-\",IF(Interfaces[[#This Row],[Interface '#]]<10,\"00\",IF(Interfaces[[#This Row],[Interface '#]]<100,\"0\",\"\")),Interfaces[[#This Row],[Interface '#]])","v":"-00"}]
[null,null,{"$f":"CONCATENATE(Interfaces[[#This Row],[Unique L3-L3 ID]],\"-\",IF(Interfaces[[#This Row],[Interface '#]]<10,\"00\",IF(Interfaces[[#This Row],[Interface '#]]<100,\"0\",\"\")),Interfaces[[#This Row],[Interface '#]])","v":"-00"}]
[null,null,{"$f":"CONCATENATE(Interfaces[[#This Row],[Unique L3-L3 ID]],\"-\",IF(Interfaces[[#This Row],[Interface '#]]<10,\"00\",IF(Interfaces[[#This Row],[Interface '#]]<100,\"0\",\"\")),Interfaces[[#This Row],[Interface '#]])","v":"-00"}]
[null,null,{"$f":"CONCATENATE(Interfaces[[#This Row],[Unique L3-L3 ID]],\"-\",IF(Interfaces[[#This Row],[Interface '#]]<10,\"00\",IF(Interfaces[[#This Row],[Interface '#]]<100,\"0\",\"\")),Interfaces[[#This Row],[Interface '#]])","v":"-00"}]
[null,null,{"$f":"CONCATENATE(Interfaces[[#This Row],[Unique L3-L3 ID]],\"-\",IF(Interfaces[[#This Row],[Interface '#]]<10,\"00\",IF(Interfaces[[#This Row],[Interface '#]]<100,\"0\",\"\")),Interfaces[[#This Row],[Interface '#]])","v":"-00"}]
[null,null,{"$f":"CONCATENATE(Interfaces[[#This Row],[Unique L3-L3 ID]],\"-\",IF(Interfaces[[#This Row],[Interface '#]]<10,\"00\",IF(Interfaces[[#This Row],[Interface '#]]<100,\"0\",\"\")),Interfaces[[#This Row],[Interface '#]])","v":"-00"}]
[null,null,{"$f":"CONCATENATE(Interfaces[[#This Row],[Unique L3-L3 ID]],\"-\",IF(Interfaces[[#This Row],[Interface '#]]<10,\"00\",IF(Interfaces[[#This Row],[Interface '#]]<100,\"0\",\"\")),Interfaces[[#This Row],[Interface '#]])","v":"-00"}]
[null,null,{"$f":"CONCATENATE(Interfaces[[#This Row],[Unique L3-L3 ID]],\"-\",IF(Interfaces[[#This Row],[Interface '#]]<10,\"00\",IF(Interfaces[[#This Row],[Interface '#]]<100,\"0\",\"\")),Interfaces[[#This Row],[Interface '#]])","v":"-00"}]
[null,null,{"$f":"CONCATENATE(Interfaces[[#This Row],[Unique L3-L3 ID]],\"-\",IF(Interfaces[[#This Row],[Interface '#]]<10,\"00\",IF(Interfaces[[#This Row],[Interface '#]]<100,\"0\",\"\")),Interfaces[[#This Row],[Interface '#]])","v":"-00"}]
[null,null,{"$f":"CONCATENATE(Interfaces[[#This Row],[Unique L3-L3 ID]],\"-\",IF(Interfaces[[#This Row],[Interface '#]]<10,\"00\",IF(Interfaces[[#This Row],[Interface '#]]<100,\"0\",\"\")),Interfaces[[#This Row],[Interface '#]])","v":"-00"}]
[null,null,{"$f":"CONCATENATE(Interfaces[[#This Row],[Unique L3-L3 ID]],\"-\",IF(Interfaces[[#This Row],[Interface '#]]<10,\"00\",IF(Interfaces[[#This Row],[Interface '#]]<100,\"0\",\"\")),Interfaces[[#This Row],[Interface '#]])","v":"-00"}]
[null,null,{"$f":"CONCATENATE(Interfaces[[#This Row],[Unique L3-L3 ID]],\"-\",IF(Interfaces[[#This Row],[Interface '#]]<10,\"00\",IF(Interfaces[[#This Row],[Interface '#]]<100,\"0\",\"\")),Interfaces[[#This Row],[Interface '#]])","v":"-00"}]
[null,null,{"$f":"CONCATENATE(Interfaces[[#This Row],[Unique L3-L3 ID]],\"-\",IF(Interfaces[[#This Row],[Interface '#]]<10,\"00\",IF(Interfaces[[#This Row],[Interface '#]]<100,\"0\",\"\")),Interfaces[[#This Row],[Interface '#]])","v":"-00"}]
[null,null,{"$f":"CONCATENATE(Interfaces[[#This Row],[Unique L3-L3 ID]],\"-\",IF(Interfaces[[#This Row],[Interface '#]]<10,\"00\",IF(Interfaces[[#This Row],[Interface '#]]<100,\"0\",\"\")),Interfaces[[#This Row],[Interface '#]])","v":"-00"}]
[null,null,{"$f":"CONCATENATE(Interfaces[[#This Row],[Unique L3-L3 ID]],\"-\",IF(Interfaces[[#This Row],[Interface '#]]<10,\"00\",IF(Interfaces[[#This Row],[Interface '#]]<100,\"0\",\"\")),Interfaces[[#This Row],[Interface '#]])","v":"-00"}]
[null,null,{"$f":"CONCATENATE(Interfaces[[#This Row],[Unique L3-L3 ID]],\"-\",IF(Interfaces[[#This Row],[Interface '#]]<10,\"00\",IF(Interfaces[[#This Row],[Interface '#]]<100,\"0\",\"\")),Interfaces[[#This Row],[Interface '#]])","v":"-00"}]
[null,null,{"$f":"CONCATENATE(Interfaces[[#This Row],[Unique L3-L3 ID]],\"-\",IF(Interfaces[[#This Row],[Interface '#]]<10,\"00\",IF(Interfaces[[#This Row],[Interface '#]]<100,\"0\",\"\")),Interfaces[[#This Row],[Interface '#]])","v":"-00"}]
[null,null,{"$f":"CONCATENATE(Interfaces[[#This Row],[Unique L3-L3 ID]],\"-\",IF(Interfaces[[#This Row],[Interface '#]]<10,\"00\",IF(Interfaces[[#This Row],[Interface '#]]<100,\"0\",\"\")),Interfaces[[#This Row],[Interface '#]])","v":"-00"}]
[null,null,{"$f":"CONCATENATE(Interfaces[[#This Row],[Unique L3-L3 ID]],\"-\",IF(Interfaces[[#This Row],[Interface '#]]<10,\"00\",IF(Interfaces[[#This Row],[Interface '#]]<100,\"0\",\"\")),Interfaces[[#This Row],[Interface '#]])","v":"-00"}]
[null,null,{"$f":"CONCATENATE(Interfaces[[#This Row],[Unique L3-L3 ID]],\"-\",IF(Interfaces[[#This Row],[Interface '#]]<10,\"00\",IF(Interfaces[[#This Row],[Interface '#]]<100,\"0\",\"\")),Interfaces[[#This Row],[Interface '#]])","v":"-00"}]
[null,null,{"$f":"CONCATENATE(Interfaces[[#This Row],[Unique L3-L3 ID]],\"-\",IF(Interfaces[[#This Row],[Interface '#]]<10,\"00\",IF(Interfaces[[#This Row],[Interface '#]]<100,\"0\",\"\")),Interfaces[[#This Row],[Interface '#]])","v":"-00"}]
[null,null,{"$f":"CONCATENATE(Interfaces[[#This Row],[Unique L3-L3 ID]],\"-\",IF(Interfaces[[#This Row],[Interface '#]]<10,\"00\",IF(Interfaces[[#This Row],[Interface '#]]<100,\"0\",\"\")),Interfaces[[#This Row],[Interface '#]])","v":"-00"}]
[null,null,{"$f":"CONCATENATE(Interfaces[[#This Row],[Unique L3-L3 ID]],\"-\",IF(Interfaces[[#This Row],[Interface '#]]<10,\"00\",IF(Interfaces[[#This Row],[Interface '#]]<100,\"0\",\"\")),Interfaces[[#This Row],[Interface '#]])","v":"-00"}]
[null,null,{"$f":"CONCATENATE(Interfaces[[#This Row],[Unique L3-L3 ID]],\"-\",IF(Interfaces[[#This Row],[Interface '#]]<10,\"00\",IF(Interfaces[[#This Row],[Interface '#]]<100,\"0\",\"\")),Interfaces[[#This Row],[Interface '#]])","v":"-00"}]
[null,null,{"$f":"CONCATENATE(Interfaces[[#This Row],[Unique L3-L3 ID]],\"-\",IF(Interfaces[[#This Row],[Interface '#]]<10,\"00\",IF(Interfaces[[#This Row],[Interface '#]]<100,\"0\",\"\")),Interfaces[[#This Row],[Interface '#]])","v":"-00"}]
[null,null,{"$f":"CONCATENATE(Interfaces[[#This Row],[Unique L3-L3 ID]],\"-\",IF(Interfaces[[#This Row],[Interface '#]]<10,\"00\",IF(Interfaces[[#This Row],[Interface '#]]<100,\"0\",\"\")),Interfaces[[#This Row],[Interface '#]])","v":"-00"}]
[null,null,{"$f":"CONCATENATE(Interfaces[[#This Row],[Unique L3-L3 ID]],\"-\",IF(Interfaces[[#This Row],[Interface '#]]<10,\"00\",IF(Interfaces[[#This Row],[Interface '#]]<100,\"0\",\"\")),Interfaces[[#This Row],[Interface '#]])","v":"-00"}]
[null,null,{"$f":"CONCATENATE(Interfaces[[#This Row],[Unique L3-L3 ID]],\"-\",IF(Interfaces[[#This Row],[Interface '#]]<10,\"00\",IF(Interfaces[[#This Row],[Interface '#]]<100,\"0\",\"\")),Interfaces[[#This Row],[Interface '#]])","v":"-00"}]
[null,null,{"$f":"CONCATENATE(Interfaces[[#This Row],[Unique L3-L3 ID]],\"-\",IF(Interfaces[[#This Row],[Interface '#]]<10,\"00\",IF(Interfaces[[#This Row],[Interface '#]]<100,\"0\",\"\")),Interfaces[[#This Row],[Interface '#]])","v":"-00"}]
[null,null,{"$f":"CONCATENATE(Interfaces[[#This Row],[Unique L3-L3 ID]],\"-\",IF(Interfaces[[#This Row],[Interface '#]]<10,\"00\",IF(Interfaces[[#This Row],[Interface '#]]<100,\"0\",\"\")),Interfaces[[#This Row],[Interface '#]])","v":"-00"}]
[null,null,{"$f":"CONCATENATE(Interfaces[[#This Row],[Unique L3-L3 ID]],\"-\",IF(Interfaces[[#This Row],[Interface '#]]<10,\"00\",IF(Interfaces[[#This Row],[Interface '#]]<100,\"0\",\"\")),Interfaces[[#This Row],[Interface '#]])","v":"-00"}]
[null,null,{"$f":"CONCATENATE(Interfaces[[#This Row],[Unique L3-L3 ID]],\"-\",IF(Interfaces[[#This Row],[Interface '#]]<10,\"00\",IF(Interfaces[[#This Row],[Interface '#]]<100,\"0\",\"\")),Interfaces[[#This Row],[Interface '#]])","v":"-00"}]
[null,null,{"$f":"CONCATENATE(Interfaces[[#This Row],[Unique L3-L3 ID]],\"-\",IF(Interfaces[[#This Row],[Interface '#]]<10,\"00\",IF(Interfaces[[#This Row],[Interface '#]]<100,\"0\",\"\")),Interfaces[[#This Row],[Interface '#]])","v":"-00"}]
[null,null,{"$f":"CONCATENATE(Interfaces[[#This Row],[Unique L3-L3 ID]],\"-\",IF(Interfaces[[#This Row],[Interface '#]]<10,\"00\",IF(Interfaces[[#This Row],[Interface '#]]<100,\"0\",\"\")),Interfaces[[#This Row],[Interface '#]])","v":"-00"}]
[null,null,{"$f":"CONCATENATE(Interfaces[[#This Row],[Unique L3-L3 ID]],\"-\",IF(Interfaces[[#This Row],[Interface '#]]<10,\"00\",IF(Interfaces[[#This Row],[Interface '#]]<100,\"0\",\"\")),Interfaces[[#This Row],[Interface '#]])","v":"-00"}]
[null,null,{"$f":"CONCATENATE(Interfaces[[#This Row],[Unique L3-L3 ID]],\"-\",IF(Interfaces[[#This Row],[Interface '#]]<10,\"00\",IF(Interfaces[[#This Row],[Interface '#]]<100,\"0\",\"\")),Interfaces[[#This Row],[Interface '#]])","v":"-00"}]
[null,null,{"$f":"CONCATENATE(Interfaces[[#This Row],[Unique L3-L3 ID]],\"-\",IF(Interfaces[[#This Row],[Interface '#]]<10,\"00\",IF(Interfaces[[#This Row],[Interface '#]]<100,\"0\",\"\")),Interfaces[[#This Row],[Interface '#]])","v":"-00"}]
[null,null,{"$f":"CONCATENATE(Interfaces[[#This Row],[Unique L3-L3 ID]],\"-\",IF(Interfaces[[#This Row],[Interface '#]]<10,\"00\",IF(Interfaces[[#This Row],[Interface '#]]<100,\"0\",\"\")),Interfaces[[#This Row],[Interface '#]])","v":"-00"}]
[null,null,{"$f":"CONCATENATE(Interfaces[[#This Row],[Unique L3-L3 ID]],\"-\",IF(Interfaces[[#This Row],[Interface '#]]<10,\"00\",IF(Interfaces[[#This Row],[Interface '#]]<100,\"0\",\"\")),Interfaces[[#This Row],[Interface '#]])","v":"-00"}]
[null,null,{"$f":"CONCATENATE(Interfaces[[#This Row],[Unique L3-L3 ID]],\"-\",IF(Interfaces[[#This Row],[Interface '#]]<10,\"00\",IF(Interfaces[[#This Row],[Interface '#]]<100,\"0\",\"\")),Interfaces[[#This Row],[Interface '#]])","v":"-00"}]
[null,null,{"$f":"CONCATENATE(Interfaces[[#This Row],[Unique L3-L3 ID]],\"-\",IF(Interfaces[[#This Row],[Interface '#]]<10,\"00\",IF(Interfaces[[#This Row],[Interface '#]]<100,\"0\",\"\")),Interfaces[[#This Row],[Interface '#]])","v":"-00"}]
[null,null,{"$f":"CONCATENATE(Interfaces[[#This Row],[Unique L3-L3 ID]],\"-\",IF(Interfaces[[#This Row],[Interface '#]]<10,\"00\",IF(Interfaces[[#This Row],[Interface '#]]<100,\"0\",\"\")),Interfaces[[#This Row],[Interface '#]])","v":"-00"}]
[null,null,{"$f":"CONCATENATE(Interfaces[[#This Row],[Unique L3-L3 ID]],\"-\",IF(Interfaces[[#This Row],[Interface '#]]<10,\"00\",IF(Interfaces[[#This Row],[Interface '#]]<100,\"0\",\"\")),Interfaces[[#This Row],[Interface '#]])","v":"-00"}]
[null,null,{"$f":"CONCATENATE(Interfaces[[#This Row],[Unique L3-L3 ID]],\"-\",IF(Interfaces[[#This Row],[Interface '#]]<10,\"00\",IF(Interfaces[[#This Row],[Interface '#]]<100,\"0\",\"\")),Interfaces[[#This Row],[Interface '#]])","v":"-00"}]
[null,null,{"$f":"CONCATENATE(Interfaces[[#This Row],[Unique L3-L3 ID]],\"-\",IF(Interfaces[[#This Row],[Interface '#]]<10,\"00\",IF(Interfaces[[#This Row],[Interface '#]]<100,\"0\",\"\")),Interfaces[[#This Row],[Interface '#]])","v":"-00"}]
[null,null,{"$f":"CONCATENATE(Interfaces[[#This Row],[Unique L3-L3 ID]],\"-\",IF(Interfaces[[#This Row],[Interface '#]]<10,\"00\",IF(Interfaces[[#This Row],[Interface '#]]<100,\"0\",\"\")),Interfaces[[#This Row],[Interface '#]])","v":"-00"}]
[null,null,{"$f":"CONCATENATE(Interfaces[[#This Row],[Unique L3-L3 ID]],\"-\",IF(Interfaces[[#This Row],[Interface '#]]<10,\"00\",IF(Interfaces[[#This Row],[Interface '#]]<100,\"0\",\"\")),Interfaces[[#This Row],[Interface '#]])","v":"-00"}]
[null,null,{"$f":"CONCATENATE(Interfaces[[#This Row],[Unique L3-L3 ID]],\"-\",IF(Interfaces[[#This Row],[Interface '#]]<10,\"00\",IF(Interfaces[[#This Row],[Interface '#]]<100,\"0\",\"\")),Interfaces[[#This Row],[Interface '#]])","v":"-00"}]
[null,null,{"$f":"CONCATENATE(Interfaces[[#This Row],[Unique L3-L3 ID]],\"-\",IF(Interfaces[[#This Row],[Interface '#]]<10,\"00\",IF(Interfaces[[#This Row],[Interface '#]]<100,\"0\",\"\")),Interfaces[[#This Row],[Interface '#]])","v":"-00"}]
[null,null,{"$f":"CONCATENATE(Interfaces[[#This Row],[Unique L3-L3 ID]],\"-\",IF(Interfaces[[#This Row],[Interface '#]]<10,\"00\",IF(Interfaces[[#This Row],[Interface '#]]<100,\"0\",\"\")),Interfaces[[#This Row],[Interface '#]])","v":"-00"}]
[null,null,{"$f":"CONCATENATE(Interfaces[[#This Row],[Unique L3-L3 ID]],\"-\",IF(Interfaces[[#This Row],[Interface '#]]<10,\"00\",IF(Interfaces[[#This Row],[Interface '#]]<100,\"0\",\"\")),Interfaces[[#This Row],[Interface '#]])","v":"-00"}]
[null,null,{"$f":"CONCATENATE(Interfaces[[#This Row],[Unique L3-L3 ID]],\"-\",IF(Interfaces[[#This Row],[Interface '#]]<10,\"00\",IF(Interfaces[[#This Row],[Interface '#]]<100,\"0\",\"\")),Interfaces[[#This Row],[Interface '#]])","v":"-00"}]
[null,null,{"$f":"CONCATENATE(Interfaces[[#This Row],[Unique L3-L3 ID]],\"-\",IF(Interfaces[[#This Row],[Interface '#]]<10,\"00\",IF(Interfaces[[#This Row],[Interface '#]]<100,\"0\",\"\")),Interfaces[[#This Row],[Interface '#]])","v":"-00"}]
[null,null,{"$f":"CONCATENATE(Interfaces[[#This Row],[Unique L3-L3 ID]],\"-\",IF(Interfaces[[#This Row],[Interface '#]]<10,\"00\",IF(Interfaces[[#This Row],[Interface '#]]<100,\"0\",\"\")),Interfaces[[#This Row],[Interface '#]])","v":"-00"}]
[null,null,{"$f":"CONCATENATE(Interfaces[[#This Row],[Unique L3-L3 ID]],\"-\",IF(Interfaces[[#This Row],[Interface '#]]<10,\"00\",IF(Interfaces[[#This Row],[Interface '#]]<100,\"0\",\"\")),Interfaces[[#This Row],[Interface '#]])","v":"-00"}]
[null,null,{"$f":"CONCATENATE(Interfaces[[#This Row],[Unique L3-L3 ID]],\"-\",IF(Interfaces[[#This Row],[Interface '#]]<10,\"00\",IF(Interfaces[[#This Row],[Interface '#]]<100,\"0\",\"\")),Interfaces[[#This Row],[Interface '#]])","v":"-00"}]
[null,null,{"$f":"CONCATENATE(Interfaces[[#This Row],[Unique L3-L3 ID]],\"-\",IF(Interfaces[[#This Row],[Interface '#]]<10,\"00\",IF(Interfaces[[#This Row],[Interface '#]]<100,\"0\",\"\")),Interfaces[[#This Row],[Interface '#]])","v":"-00"}]
[null,null,{"$f":"CONCATENATE(Interfaces[[#This Row],[Unique L3-L3 ID]],\"-\",IF(Interfaces[[#This Row],[Interface '#]]<10,\"00\",IF(Interfaces[[#This Row],[Interface '#]]<100,\"0\",\"\")),Interfaces[[#This Row],[Interface '#]])","v":"-00"}]
[null,null,{"$f":"CONCATENATE(Interfaces[[#This Row],[Unique L3-L3 ID]],\"-\",IF(Interfaces[[#This Row],[Interface '#]]<10,\"00\",IF(Interfaces[[#This Row],[Interface '#]]<100,\"0\",\"\")),Interfaces[[#This Row],[Interface '#]])","v":"-00"}]
[null,null,{"$f":"CONCATENATE(Interfaces[[#This Row],[Unique L3-L3 ID]],\"-\",IF(Interfaces[[#This Row],[Interface '#]]<10,\"00\",IF(Interfaces[[#This Row],[Interface '#]]<100,\"0\",\"\")),Interfaces[[#This Row],[Interface '#]])","v":"-00"}]
[null,null,{"$f":"CONCATENATE(Interfaces[[#This Row],[Unique L3-L3 ID]],\"-\",IF(Interfaces[[#This Row],[Interface '#]]<10,\"00\",IF(Interfaces[[#This Row],[Interface '#]]<100,\"0\",\"\")),Interfaces[[#This Row],[Interface '#]])","v":"-00"}]
[null,null,{"$f":"CONCATENATE(Interfaces[[#This Row],[Unique L3-L3 ID]],\"-\",IF(Interfaces[[#This Row],[Interface '#]]<10,\"00\",IF(Interfaces[[#This Row],[Interface '#]]<100,\"0\",\"\")),Interfaces[[#This Row],[Interface '#]])","v":"-00"}]
[null,null,{"$f":"CONCATENATE(Interfaces[[#This Row],[Unique L3-L3 ID]],\"-\",IF(Interfaces[[#This Row],[Interface '#]]<10,\"00\",IF(Interfaces[[#This Row],[Interface '#]]<100,\"0\",\"\")),Interfaces[[#This Row],[Interface '#]])","v":"-00"}]
[null,null,{"$f":"CONCATENATE(Interfaces[[#This Row],[Unique L3-L3 ID]],\"-\",IF(Interfaces[[#This Row],[Interface '#]]<10,\"00\",IF(Interfaces[[#This Row],[Interface '#]]<100,\"0\",\"\")),Interfaces[[#This Row],[Interface '#]])","v":"-00"}]
[null,null,{"$f":"CONCATENATE(Interfaces[[#This Row],[Unique L3-L3 ID]],\"-\",IF(Interfaces[[#This Row],[Interface '#]]<10,\"00\",IF(Interfaces[[#This Row],[Interface '#]]<100,\"0\",\"\")),Interfaces[[#This Row],[Interface '#]])","v":"-00"}]
[null,null,{"$f":"CONCATENATE(Interfaces[[#This Row],[Unique L3-L3 ID]],\"-\",IF(Interfaces[[#This Row],[Interface '#]]<10,\"00\",IF(Interfaces[[#This Row],[Interface '#]]<100,\"0\",\"\")),Interfaces[[#This Row],[Interface '#]])","v":"-00"}]
[null,null,{"$f":"CONCATENATE(Interfaces[[#This Row],[Unique L3-L3 ID]],\"-\",IF(Interfaces[[#This Row],[Interface '#]]<10,\"00\",IF(Interfaces[[#This Row],[Interface '#]]<100,\"0\",\"\")),Interfaces[[#This Row],[Interface '#]])","v":"-00"}]
[null,null,{"$f":"CONCATENATE(Interfaces[[#This Row],[Unique L3-L3 ID]],\"-\",IF(Interfaces[[#This Row],[Interface '#]]<10,\"00\",IF(Interfaces[[#This Row],[Interface '#]]<100,\"0\",\"\")),Interfaces[[#This Row],[Interface '#]])","v":"-00"}]
[null,null,{"$f":"CONCATENATE(Interfaces[[#This Row],[Unique L3-L3 ID]],\"-\",IF(Interfaces[[#This Row],[Interface '#]]<10,\"00\",IF(Interfaces[[#This Row],[Interface '#]]<100,\"0\",\"\")),Interfaces[[#This Row],[Interface '#]])","v":"-00"}]
[null,null,{"$f":"CONCATENATE(Interfaces[[#This Row],[Unique L3-L3 ID]],\"-\",IF(Interfaces[[#This Row],[Interface '#]]<10,\"00\",IF(Interfaces[[#This Row],[Interface '#]]<100,\"0\",\"\")),Interfaces[[#This Row],[Interface '#]])","v":"-00"}]
[null,null,{"$f":"CONCATENATE(Interfaces[[#This Row],[Unique L3-L3 ID]],\"-\",IF(Interfaces[[#This Row],[Interface '#]]<10,\"00\",IF(Interfaces[[#This Row],[Interface '#]]<100,\"0\",\"\")),Interfaces[[#This Row],[Interface '#]])","v":"-00"}]
[null,null,{"$f":"CONCATENATE(Interfaces[[#This Row],[Unique L3-L3 ID]],\"-\",IF(Interfaces[[#This Row],[Interface '#]]<10,\"00\",IF(Interfaces[[#This Row],[Interface '#]]<100,\"0\",\"\")),Interfaces[[#This Row],[Interface '#]])","v":"-00"}]
[null,null,{"$f":"CONCATENATE(Interfaces[[#This Row],[Unique L3-L3 ID]],\"-\",IF(Interfaces[[#This Row],[Interface '#]]<10,\"00\",IF(Interfaces[[#This Row],[Interface '#]]<100,\"0\",\"\")),Interfaces[[#This Row],[Interface '#]])","v":"-00"}]
[null,null,{"$f":"CONCATENATE(Interfaces[[#This Row],[Unique L3-L3 ID]],\"-\",IF(Interfaces[[#This Row],[Interface '#]]<10,\"00\",IF(Interfaces[[#This Row],[Interface '#]]<100,\"0\",\"\")),Interfaces[[#This Row],[Interface '#]])","v":"-00"}]
[null,null,{"$f":"CONCATENATE(Interfaces[[#This Row],[Unique L3-L3 ID]],\"-\",IF(Interfaces[[#This Row],[Interface '#]]<10,\"00\",IF(Interfaces[[#This Row],[Interface '#]]<100,\"0\",\"\")),Interfaces[[#This Row],[Interface '#]])","v":"-00"}]
[null,null,{"$f":"CONCATENATE(Interfaces[[#This Row],[Unique L3-L3 ID]],\"-\",IF(Interfaces[[#This Row],[Interface '#]]<10,\"00\",IF(Interfaces[[#This Row],[Interface '#]]<100,\"0\",\"\")),Interfaces[[#This Row],[Interface '#]])","v":"-00"}]
[null,null,{"$f":"CONCATENATE(Interfaces[[#This Row],[Unique L3-L3 ID]],\"-\",IF(Interfaces[[#This Row],[Interface '#]]<10,\"00\",IF(Interfaces[[#This Row],[Interface '#]]<100,\"0\",\"\")),Interfaces[[#This Row],[Interface '#]])","v":"-00"}]
[null,null,{"$f":"CONCATENATE(Interfaces[[#This Row],[Unique L3-L3 ID]],\"-\",IF(Interfaces[[#This Row],[Interface '#]]<10,\"00\",IF(Interfaces[[#This Row],[Interface '#]]<100,\"0\",\"\")),Interfaces[[#This Row],[Interface '#]])","v":"-00"}]
[null,null,{"$f":"CONCATENATE(Interfaces[[#This Row],[Unique L3-L3 ID]],\"-\",IF(Interfaces[[#This Row],[Interface '#]]<10,\"00\",IF(Interfaces[[#This Row],[Interface '#]]<100,\"0\",\"\")),Interfaces[[#This Row],[Interface '#]])","v":"-00"}]
[null,null,{"$f":"CONCATENATE(Interfaces[[#This Row],[Unique L3-L3 ID]],\"-\",IF(Interfaces[[#This Row],[Interface '#]]<10,\"00\",IF(Interfaces[[#This Row],[Interface '#]]<100,\"0\",\"\")),Interfaces[[#This Row],[Interface '#]])","v":"-00"}]
[null,null,{"$f":"CONCATENATE(Interfaces[[#This Row],[Unique L3-L3 ID]],\"-\",IF(Interfaces[[#This Row],[Interface '#]]<10,\"00\",IF(Interfaces[[#This Row],[Interface '#]]<100,\"0\",\"\")),Interfaces[[#This Row],[Interface '#]])","v":"-00"}]
[null,null,{"$f":"CONCATENATE(Interfaces[[#This Row],[Unique L3-L3 ID]],\"-\",IF(Interfaces[[#This Row],[Interface '#]]<10,\"00\",IF(Interfaces[[#This Row],[Interface '#]]<100,\"0\",\"\")),Interfaces[[#This Row],[Interface '#]])","v":"-00"}]
[null,null,{"$f":"CONCATENATE(Interfaces[[#This Row],[Unique L3-L3 ID]],\"-\",IF(Interfaces[[#This Row],[Interface '#]]<10,\"00\",IF(Interfaces[[#This Row],[Interface '#]]<100,\"0\",\"\")),Interfaces[[#This Row],[Interface '#]])","v":"-00"}]
[null,null,{"$f":"CONCATENATE(Interfaces[[#This Row],[Unique L3-L3 ID]],\"-\",IF(Interfaces[[#This Row],[Interface '#]]<10,\"00\",IF(Interfaces[[#This Row],[Interface '#]]<100,\"0\",\"\")),Interfaces[[#This Row],[Interface '#]])","v":"-00"}]
[null,null,{"$f":"CONCATENATE(Interfaces[[#This Row],[Unique L3-L3 ID]],\"-\",IF(Interfaces[[#This Row],[Interface '#]]<10,\"00\",IF(Interfaces[[#This Row],[Interface '#]]<100,\"0\",\"\")),Interfaces[[#This Row],[Interface '#]])","v":"-00"}]
[null,null,{"$f":"CONCATENATE(Interfaces[[#This Row],[Unique L3-L3 ID]],\"-\",IF(Interfaces[[#This Row],[Interface '#]]<10,\"00\",IF(Interfaces[[#This Row],[Interface '#]]<100,\"0\",\"\")),Interfaces[[#This Row],[Interface '#]])","v":"-00"}]
[null,null,{"$f":"CONCATENATE(Interfaces[[#This Row],[Unique L3-L3 ID]],\"-\",IF(Interfaces[[#This Row],[Interface '#]]<10,\"00\",IF(Interfaces[[#This Row],[Interface '#]]<100,\"0\",\"\")),Interfaces[[#This Row],[Interface '#]])","v":"-00"}]
[null,null,{"$f":"CONCATENATE(Interfaces[[#This Row],[Unique L3-L3 ID]],\"-\",IF(Interfaces[[#This Row],[Interface '#]]<10,\"00\",IF(Interfaces[[#This Row],[Interface '#]]<100,\"0\",\"\")),Interfaces[[#This Row],[Interface '#]])","v":"-00"}]
[null,null,{"$f":"CONCATENATE(Interfaces[[#This Row],[Unique L3-L3 ID]],\"-\",IF(Interfaces[[#This Row],[Interface '#]]<10,\"00\",IF(Interfaces[[#This Row],[Interface '#]]<100,\"0\",\"\")),Interfaces[[#This Row],[Interface '#]])","v":"-00"}]
[null,null,{"$f":"CONCATENATE(Interfaces[[#This Row],[Unique L3-L3 ID]],\"-\",IF(Interfaces[[#This Row],[Interface '#]]<10,\"00\",IF(Interfaces[[#This Row],[Interface '#]]<100,\"0\",\"\")),Interfaces[[#This Row],[Interface '#]])","v":"-00"}]
[null,null,{"$f":"CONCATENATE(Interfaces[[#This Row],[Unique L3-L3 ID]],\"-\",IF(Interfaces[[#This Row],[Interface '#]]<10,\"00\",IF(Interfaces[[#This Row],[Interface '#]]<100,\"0\",\"\")),Interfaces[[#This Row],[Interface '#]])","v":"-00"}]
[null,null,{"$f":"CONCATENATE(Interfaces[[#This Row],[Unique L3-L3 ID]],\"-\",IF(Interfaces[[#This Row],[Interface '#]]<10,\"00\",IF(Interfaces[[#This Row],[Interface '#]]<100,\"0\",\"\")),Interfaces[[#This Row],[Interface '#]])","v":"-00"}]
[null,null,{"$f":"CONCATENATE(Interfaces[[#This Row],[Unique L3-L3 ID]],\"-\",IF(Interfaces[[#This Row],[Interface '#]]<10,\"00\",IF(Interfaces[[#This Row],[Interface '#]]<100,\"0\",\"\")),Interfaces[[#This Row],[Interface '#]])","v":"-00"}]
[null,null,{"$f":"CONCATENATE(Interfaces[[#This Row],[Unique L3-L3 ID]],\"-\",IF(Interfaces[[#This Row],[Interface '#]]<10,\"00\",IF(Interfaces[[#This Row],[Interface '#]]<100,\"0\",\"\")),Interfaces[[#This Row],[Interface '#]])","v":"-00"}]
[null,null,{"$f":"CONCATENATE(Interfaces[[#This Row],[Unique L3-L3 ID]],\"-\",IF(Interfaces[[#This Row],[Interface '#]]<10,\"00\",IF(Interfaces[[#This Row],[Interface '#]]<100,\"0\",\"\")),Interfaces[[#This Row],[Interface '#]])","v":"-00"}]
[null,null,{"$f":"CONCATENATE(Interfaces[[#This Row],[Unique L3-L3 ID]],\"-\",IF(Interfaces[[#This Row],[Interface '#]]<10,\"00\",IF(Interfaces[[#This Row],[Interface '#]]<100,\"0\",\"\")),Interfaces[[#This Row],[Interface '#]])","v":"-00"}]
[null,null,{"$f":"CONCATENATE(Interfaces[[#This Row],[Unique L3-L3 ID]],\"-\",IF(Interfaces[[#This Row],[Interface '#]]<10,\"00\",IF(Interfaces[[#This Row],[Interface '#]]<100,\"0\",\"\")),Interfaces[[#This Row],[Interface '#]])","v":"-00"}]
[null,null,{"$f":"CONCATENATE(Interfaces[[#This Row],[Unique L3-L3 ID]],\"-\",IF(Interfaces[[#This Row],[Interface '#]]<10,\"00\",IF(Interfaces[[#This Row],[Interface '#]]<100,\"0\",\"\")),Interfaces[[#This Row],[Interface '#]])","v":"-00"}]

{"sheet":"List","index":2,"n_rows":37,"n_cols":6,"rows_kept":37,"cut":false,"hidden":false,"merged":[]}
[]
[null,"Level","WBS","System Name","System Abbreviation","WBS + System"]
[null,"L3","121.1.01","Project Management (PM)","PIP-II PM",{"$f":"CONCATENATE(C3,\" \",E3)","v":"121.1.01 PIP-II PM"}]
[null,"L3","121.1.02","Technical Oversight and Integration (TOI)","TOI",{"$f":"CONCATENATE(C4,\" \",E4)","v":"121.1.02 TOI"}]
[null,"L3","121.1.03","Environmental Safety, Health and Quality (ESHQ)","ESHQ","121.1.03 ESHQ"]
[null,"L3","121.2.01","Project Management (PM)","SRF PM","121.2.01 SRF PM"]
[null,"L3","121.2.02","Half Wave Resonator CM (HWR)","HWR","121.2.02 HWR"]
[null,"L3","121.2.03","Single Spoke Resonator CM (SSR)","SSR","121.2.03 SSR"]
[null,"L3","121.2.04","650 MHz CryoModules (650MHz)","650MHz","121.2.04 650MHz"]
[null,"L3","121.2.05","Cryogenic Plant (CP)","CP","121.2.05 CP"]
[null,"L3","121.2.06","Cryogenic Distribution System (CDS)","CDS","121.2.06 CDS"]
[null,"L3","121.3.01","Project Management and Coordination (PM)","AS PM","121.3.01 AS PM"]
[null,"L3","121.3.03","High Power Radio Frequency and RF Distribution (HPRF)","HPRF","121.3.03 HPRF"]
[null,"L3","121.3.04","Low Level Radio Frequency (LLRF)","LLRF","121.3.04 LLRF"]
[null,"L3","121.3.05","Magnets and Power Supplies (MagPS)","MagPS","121.3.05 MagPS"]
[null,"L3","121.3.06","Vacuum (Vac)","Vac","121.3.06 Vac"]
[null,"L3","121.3.07","Controls (Cntrl)","Cntrl","121.3.07 Cntrl"]
[null,"L3","121.3.08","Safety Systems (SS)","SS","121.3.08 SS"]
[null,"L3","121.3.09","Beam Instrumentation (BI)","BI","121.3.09 BI"]
[null,"L3","121.3.02","Accelerator Physics (AP)","AP","121.3.02 AP"]
[null,"L3","121.4.01","Project Management and Coordination (PM)","LIIC PM","121.4.01 LIIC PM"]
[null,"L3","121.4.02","Warm Front End (WFE)","WFE","121.4.02 WFE"]
[null,"L2","121.4.03","Test Infrastructure (TI)","TI","121.4.03 TI"]
[null,"L3","121.4.04","Building Infrastructure (BldgI)","BldgI","121.4.04 BldgI"]
[null,"L3","121.4.05","Linac Installation (LI)","LI","121.4.05 LI"]
[null,"L3","121.4.06","Linac Commissioning (Comm)","Comm","121.4.06 Comm"]
[null,"L3","121.5.01","Project Management and Coordination (PM)","ACU PM","121.5.01 ACU PM"]
[null,"L3","121.5.02","Booster (BSTR)","BSTR","121.5.02 BSTR"]
[null,"L3","121.5.03","Main Injector and Recycler Ring (MIRR)","MIRR","121.5.03 MIRR"]
[null,"L3","121.5.04","Transfer Line and Beam Absorber (TLBA)","TLBA","121.5.04 TLBA"]
[null,"L3","121.5.05","Rings Installation (RInst)","Rinst","121.5.05 Rinst"]
[null,"L3","121.6.01","Project Management and Coordination (PM)","CF PM","121.6.01 CF PM"]
[null,"L3","121.6.02","Site Preparation (SitePrep)","SitePrep","121.6.02 SitePrep"]
[null,"L3","121.6.03","Cryoplant Building (CryoB)","CryoB","121.6.03 CryoB"]
[null,"L3","121.6.04","Utility Plant Building (UtilB)","UtilB","121.6.04 UtilB"]
[null,"L3","121.6.05","Linac Complex (Cmplx)","Cmplx","121.6.05 Cmplx"]
[null,"L3","121.6.06","Booster Connection (BstrC)","BstrC",{"$f":"CONCATENATE(C37,\" \",E37)","v":"121.6.06 BstrC"}]

{"sheet":"List2","index":3,"n_rows":35,"n_cols":6,"rows_kept":35,"cut":false,"hidden":false,"merged":[]}
[]
[null,"Level","WBS","System Name","System Abbreviation","WBS + System"]
[null,"L3","121.2.01","Project Management (PM)","SRF PM",{"$f":"CONCATENATE(C3,\" \",E3)","v":"121.2.01 SRF PM"}]
[null,"L3","121.2.02","Half Wave Resonator CM (HWR)","HWR","121.2.02 HWR"]
[null,"L3","121.2.03","Single Spoke Resonator CM (SSR)","SSR","121.2.03 SSR"]
[null,"L3","121.2.04","650 MHz CryoModules (650MHz)","650MHz","121.2.04 650MHz"]
[null,"L3","121.2.05","Cryogenic Plant (CP)","CP","121.2.05 CP"]
[null,"L3","121.2.06","Cryogenic Distribution System (CDS)","CDS","121.2.06 CDS"]
[null,"L3","121.3.01","Project Management and Coordination (PM)","AS PM","121.3.01 AS PM"]
[null,"L3","121.3.03","High Power Radio Frequency and RF Distribution (HPRF)","HPRF","121.3.03 HPRF"]
[null,"L3","121.3.04","Low Level Radio Frequency (LLRF)","LLRF","121.3.04 LLRF"]
[null,"L3","121.3.05","Magnets and Power Supplies (MagPS)","MagPS","121.3.05 MagPS"]
[null,"L3","121.3.06","Vacuum (Vac)","Vac","121.3.06 Vac"]
[null,"L3","121.3.07","Controls (Cntrl)","Cntrl","121.3.07 Cntrl"]
[null,"L3","121.3.08","Safety Systems (SS)","SS","121.3.08 SS"]
[null,"L3","121.3.09","Beam Instrumentation (BI)","BI","121.3.09 BI"]
[null,"L3","121.3.02","Machine Protection System (MPS)","MPS","121.3.02 MPS"]
[null,"L3","121.4.01","Project Management and Coordination (PM)","LIIC PM","121.4.01 LIIC PM"]
[null,"L3","121.4.02","Warm Front End (WFE)","WFE","121.4.02 WFE"]
[null,"L2","121.4.03","Test Infrastructure (TI)","TI","121.4.03 TI"]
[null,"L3","121.4.04","Building Infrastructure (BldgI)","BldgI","121.4.04 BldgI"]
[null,"L3","121.4.05","Linac Installation (LI)","LI","121.4.05 LI"]
[null,"L3","121.4.06","Linac Commissioning (Comm)","Comm","121.4.06 Comm"]
[null,"L3","121.4.07","Accelerator Physics (AP)","AP",{"$f":"CONCATENATE(C24,\" \",E24)","v":"121.4.07 AP"}]
[null,"L3","121.5.01","Project Management and Coordination (PM)","ACU PM","121.5.01 ACU PM"]
[null,"L3","121.5.04","Booster (BSTR)","BSTR","121.5.04 BSTR"]
[null,"L3","121.5.05","Main Injector and Recycler Ring (MIRR)","MIRR","121.5.05 MIRR"]
[null,"L3","121.5.02","Transfer Line and Beam Absorber (TLBA)","TLBA","121.5.02 TLBA"]
[null,"L3","121.5.03","Beam Transfer Line Installation (BTLI)","BTLI","121.5.03 BTLI"]
[null,"L3","121.6.01","Project Management and Coordination (PM)","CF PM","121.6.01 CF PM"]
[null,"L3","121.6.02","Site Preparation (SitePrep)","SitePrep","121.6.02 SitePrep"]
[null,"L3","121.6.03","Cryoplant Building (CryoB)","CryoB","121.6.03 CryoB"]
[null,"L3","121.6.04","Utility Plant Building (UtilB)","UtilB","121.6.04 UtilB"]
[null,"L3","121.6.05","Linac Complex (Cmplx)","Cmplx","121.6.05 Cmplx"]
[null,"L3","121.6.06","Booster Connection (BstrC)","BstrC",{"$f":"CONCATENATE(C35,\" \",E35)","v":"121.6.06 BstrC"}]